bitfinex/quotes_ETHUSD_20260110
["timestamp","ask_amount","ask_price","bid_price","bid_amount"]
[1768044995226,0.001,3096.7,3096.5,0.92338206]
[1768044998933,0.255,3096.7,3096.5,0.92338206]
[1768045004440,0.001,3096.7,3096.5,0.92338206]
[1768045004740,0.255,3096.7,3096.5,0.92338206]
[1768045005443,0.255,3096.7,3096.5,0.60812361]
[1768045007637,0.255,3096.7,3096.2,3.23053744]
[1768045007845,0.255,3096.7,3096.3,0.96110314]
[1768045013546,0.001,3096.7,3096.3,0.96110314]
[1768045013851,0.001,3096.7,3096.4,0.97398251]
[1768045019654,0.001,3096.7,3096.2,3.23052372]
[1768045019855,0.001,3096.7,3096.2,0.0008008]
[1768045020462,0.001,3096.7,3096.2,0.97478331]
[1768045030572,0.001,3096.7,3096.5,0.002]
[1768045035991,0.001,3096.7,3096.5,0.99563909]
[1768045036494,0.001,3096.7,3096.5,0.002]
[1768045086420,0.001,3096.7,3096.5,0.93123053]
[1768045087920,0.001,3096.7,3096.5,0.002]
[1768045104863,0.001,3096.7,3096.5,0.93123053]
[1768045105362,0.254,3096.8,3096.5,0.93123053]
[1768045107438,0.254,3096.8,3096.5,0.002]
[1768045108771,0.254,3096.8,3096.5,0.93123053]
[1768045111870,0.254,3096.8,3096.5,0.002]
[1768045116075,0.0008008,3097.0,3096.5,0.002]
[1768045116275,0.254,3096.9,3096.5,0.002]
[1768045116983,0.254,3096.9,3096.5,0.98728619]
[1768045128491,0.254,3096.9,3096.5,0.002]
[1768045129588,1.18979093,3096.9,3096.5,0.002]
[1768045133757,0.254,3096.9,3096.5,0.002]
[1768045180335,1.1603443,3096.9,3096.5,0.002]
[1768045189049,0.254,3096.9,3096.5,0.002]
[1768045193445,1.24869888,3096.9,3096.5,0.002]
[1768045193749,0.99469888,3096.8,3096.5,0.002]
[1768045194048,0.254,3096.9,3096.5,0.002]
[1768045203653,0.254,3096.9,3096.5,0.90290111]
[1768045203823,0.25200001,3096.9,3096.5,0.90290111]
[1768045204027,0.25200001,3096.9,3096.6,0.90090111]
[1768045207658,0.0008008,3097.0,3096.6,0.90090111]
[1768045207865,0.254,3096.8,3096.6,0.90090111]
[1768045208030,0.254,3096.8,3096.7,0.90090111]
[1768045208233,0.0008008,3097.0,3096.7,0.90090111]
[1768045209041,0.25280561,3097.3,3096.9,0.90090111]
[1768045209243,0.254,3097.3,3096.9,0.90090111]
[1768045219698,0.001,3097.0,3096.9,0.90090111]
[1768045220189,0.001,3097.0,3096.8,0.00080568]
[1768045225397,0.001,3097.0,3096.8,0.90170679]
[1768045225555,0.001,3097.0,3096.9,0.90090111]
[1768045229893,0.0008016,3097.4,3097.0,0.90090111]
[1768045230063,0.2548016,3097.4,3097.0,0.90090111]
[1768045230385,0.0008016,3097.4,3097.0,0.90090111]
[1768045230993,0.0008016,3097.4,3097.1,0.92549417]
[1768045231373,0.0008016,3097.4,3097.2,0.002]
[1768045234463,0.0008016,3097.4,3097.2,0.256]
[1768045241769,0.0008016,3097.4,3097.2,0.002]
[1768045243303,0.0008016,3097.4,3097.0,0.96402847]
[1768045245108,0.002,3097.1,3097.0,0.96402847]
[1768045245267,0.0028016,3097.4,3097.0,0.96402847]
[1768045247514,0.96683007,3097.4,3097.0,0.8851807]
[1768045247691,0.96907832,3097.3,3096.9,0.002]
[1768045250470,0.96402847,3097.2,3096.9,0.002]
[1768045250876,0.0028016,3097.4,3096.9,0.002]
[1768045251176,0.3305512,3097.3,3096.9,0.002]
[1768045251376,0.1292192,3097.1,3096.9,0.002]
[1768045258031,0.1302192,3097.1,3096.9,0.002]
[1768045258443,0.001,3097.1,3096.9,0.002]
[1768045258905,0.96081242,3097.0,3096.9,0.002]
[1768045270059,0.96181242,3097.0,3096.9,0.002]
[1768045276670,1.14885367,3097.0,3096.9,0.002]
[1768045287454,1.14885367,3097.0,3096.9,0.98991131]
[1768045287954,1.14885367,3097.0,3096.8,0.00080568]
[1768045290175,0.18804125,3097.0,3096.8,0.00080568]
[1768045290374,0.001,3097.0,3096.8,0.00080568]
[1768045310487,0.001,3097.0,3096.8,0.9982637]
[1768045313093,0.001,3097.0,3096.6,0.96954008]
[1768045313611,0.96925992,3096.9,3096.6,0.96954008]
[1768045315720,0.96925992,3096.9,3096.6,0.0008016]
[1768045317714,0.18797513,3096.8,3096.6,0.0008016]
[1768045319620,0.18797513,3096.8,3096.6,0.96954008]
[1768045319809,0.96925992,3096.9,3096.6,0.96954008]
[1768045322315,0.96925992,3096.9,3096.6,0.0008016]
[1768045324525,4.19830349,3096.9,3096.6,0.0008016]
[1768045324883,0.93653094,3096.8,3096.6,0.0008016]
[1768045325220,0.93653094,3096.8,3096.5,0.002]
[1768045325413,0.93653094,3096.6,3096.5,0.002]
[1768045326282,1.19053094,3096.6,3096.5,0.002]
[1768045328401,4.41987925,3096.6,3096.5,0.002]
[1768045329046,4.67387925,3096.6,3096.5,0.002]
[1768045329339,2.27648912,3096.6,3096.5,0.002]
[1768045329717,2.27748912,3096.6,3096.5,0.002]
[1768045330634,0.00160552,3096.2,3095.6,4.45771649]
[1768045330802,0.00160552,3096.2,3095.7,3.2302825]
[1768045331001,0.00160552,3096.2,3095.7,4.20480212]
[1768045332529,0.00160552,3096.2,3095.7,0.97451962]
[1768045333434,0.00160552,3096.2,3095.7,4.20477817]
[1768045334118,0.00160552,3096.2,3095.8,0.97451962]
[1768045341450,0.00160552,3096.2,3096.1,0.002]
[1768045343720,0.00160552,3096.2,3096.1,0.97651962]
[1768045343949,0.00160552,3096.2,3096.1,0.002]
[1768045344143,0.00160552,3096.2,3096.1,0.97651962]
[1768045344345,0.00160552,3096.2,3096.1,0.002]
[1768045344551,0.00160552,3096.2,3096.1,0.97651962]
[1768045344849,0.93653094,3096.5,3096.1,0.002]
[1768045350729,1.19233174,3096.6,3096.1,0.002]
[1768045350931,1.67613483,3096.6,3096.1,0.002]
[1768045352530,0.73960389,3096.6,3096.2,0.97451962]
[1768045352730,0.73960389,3096.6,3096.1,0.002]
[1768045353138,1.64136068,3096.6,3096.1,0.002]
[1768045354662,1.15755759,3096.6,3096.1,0.002]
[1768045355268,0.001,3096.2,3096.1,0.002]
[1768045356669,0.001,3096.2,3096.1,0.94357549]
[1768045357564,0.001,3096.2,3096.1,0.002]
[1768045358468,0.001,3096.2,3096.1,0.94357549]
[1768045358767,0.2558008,3096.6,3096.2,0.94157549]
[1768045359363,0.2558008,3096.6,3096.1,0.002]
[1768045360971,0.2558008,3096.6,3096.1,0.94357549]
[1768045362332,0.2558008,3096.6,3096.1,0.002]
[1768045362537,0.2558008,3096.6,3096.2,0.94157549]
[1768045364255,0.2558008,3096.6,3096.1,0.002]
[1768045364439,0.2558008,3096.6,3096.2,0.94157549]
[1768045364769,0.2558008,3096.6,3096.1,0.002]
[1768045365569,0.2558008,3096.6,3096.2,0.94157549]
[1768045366579,0.2558008,3096.6,3096.1,0.002]
[1768045367983,0.001,3096.3,3096.1,0.002]
[1768045374481,0.2558008,3096.6,3096.1,0.002]
[1768045378988,1.25364491,3096.6,3096.1,0.002]
[1768045379688,0.001,3096.3,3096.1,0.002]
[1768045379892,0.0018008,3096.6,3096.1,0.93250157]
[1768045380589,0.0018008,3096.6,3096.1,0.002]
[1768045382183,0.0018008,3096.6,3096.1,0.93250157]
[1768045382692,0.96930689,3096.8,3096.2,0.93050157]
[1768045382894,0.99964571,3097.0,3096.2,0.93050157]
[1768045383100,0.99964571,3097.0,3096.2,0.93130317]
[1768045383300,0.96928184,3096.9,3096.2,0.93130317]
[1768045388727,0.96928184,3096.9,3096.3,3.2296612]
[1768045389626,0.96928184,3096.9,3096.2,4.16103065]
[1768045390123,1.86955551,3096.9,3096.2,4.16103065]
[1768045391615,1.86955551,3096.9,3096.5,0.002]
[1768045391826,0.001,3096.6,3096.5,0.002]
[1768045392442,1.86955551,3096.9,3096.5,0.002]
[1768045402360,0.96928184,3096.9,3096.5,0.002]
[1768045402928,2.08219122,3096.9,3096.5,0.002]
[1768045404460,0.001,3096.6,3096.5,0.002]
[1768045404638,1.86955551,3096.9,3096.5,0.002]
[1768045404838,0.90027367,3096.9,3096.5,0.002]
[1768045407061,0.97107717,3097.0,3096.5,0.002]
[1768045408262,1.87135084,3097.0,3096.5,0.002]
[1768045409863,0.97107717,3097.0,3096.5,0.002]
[1768045410565,1.87135084,3097.0,3096.5,0.002]
[1768045411374,0.90207527,3097.0,3096.5,0.002]
[1768045417270,0.001,3096.7,3096.5,0.002]
[1768045455175,0.001,3096.7,3096.5,0.00080359]
[1768045463809,0.0018016,3097.0,3096.5,4.35347107]
[1768045463966,0.255,3097.1,3096.5,4.35347107]
[1768045464170,0.255,3097.1,3096.6,0.0008024]
[1768045472373,0.96921295,3097.0,3096.6,0.0008024]
[1768045474738,0.255,3097.1,3096.6,0.0008024]
[1768045475087,1.22421295,3097.1,3096.6,0.0008024]
[1768045475797,0.001,3096.8,3096.6,0.0008024]
[1768045476002,1.22421295,3097.1,3096.6,0.0008024]
[1768045478373,0.0028016,3097.4,3096.8,3.44520465]
[1768045478585,0.97091081,3097.4,3096.8,3.44601041]
[1768045479011,0.97091081,3097.4,3096.8,4.41411962]
[1768045479819,0.97091081,3097.4,3096.8,0.96891497]
[1768045487746,0.001,3097.1,3096.8,0.96891497]
[1768045488544,0.001,3097.1,3096.8,0.00080576]
[1768045499343,0.96810921,3097.3,3096.8,0.00080576]
[1768045499637,0.96810921,3097.3,3097.1,0.002]
[1768045499797,0.96810921,3097.3,3096.8,0.00080576]
[1768045500001,0.96810921,3097.3,3096.8,0.00280576]
[1768045511972,0.96810921,3097.3,3097.1,0.002]
[1768045512152,1.38805257,3097.3,3096.8,0.00280576]
[1768045518772,4.61667565,3097.3,3096.8,0.00280576]
[1768045519883,1.38805257,3097.3,3096.8,0.00280576]
[1768045522585,4.6166716,3097.3,3096.8,0.00280576]
[1768045522786,3.64856239,3097.3,3096.8,0.00280576]
[1768045523790,3.64856239,3097.3,3097.1,0.002]
[1768045523994,0.3651364,3097.2,3096.8,0.00280576]
[1768045524162,3.64856239,3097.3,3096.8,0.00280576]
[1768045525077,0.97406015,3097.2,3096.8,0.00280576]
[1768045526013,1.1032877,3097.2,3096.8,0.00280576]
[1768045530284,4.33202515,3097.2,3096.8,0.00280576]
[1768045530815,0.97406015,3097.1,3096.8,0.00280576]
[1768045531020,1.40726266,3097.0,3096.8,0.00280576]
[1768045534494,0.97406015,3097.0,3096.8,0.00280576]
[1768045534696,0.95562267,3097.2,3096.8,0.00280576]
[1768045535710,0.95642843,3097.2,3096.8,0.00080971]
[1768045536730,4.18518492,3097.2,3096.8,0.00080971]
[1768045542849,0.95562267,3097.0,3096.6,0.0008024]
[1768045543531,4.18462774,3097.0,3096.6,0.0008024]
[1768045545719,0.95562267,3096.9,3096.6,0.0008024]
[1768045546713,3.22913975,3096.8,3096.6,0.0008024]
[1768045547728,3.22913975,3096.8,3096.5,0.00080359]
[1768045547926,1.37419891,3096.7,3096.2,0.0008016]
[1768045548832,3.22934831,3096.6,3096.2,0.0008016]
[1768045549336,0.95562267,3096.5,3096.2,0.0008016]
[1768045550110,3.22934831,3096.6,3096.2,0.0008016]
[1768045550832,3.48334831,3096.6,3096.2,0.0008016]
[1768045551038,0.80867927,3096.5,3096.2,0.0008016]
[1768045554942,0.254,3096.6,3096.2,0.0008016]
[1768045558824,0.254,3096.6,3096.2,0.94088835]
[1768045559437,0.254,3096.6,3096.5,0.002]
[1768045559637,0.254,3096.6,3096.2,0.0008016]
[1768045561566,0.254,3096.6,3096.2,0.94088835]
[1768045561731,0.60232829,3096.6,3096.2,0.94088835]
[1768045562433,0.254,3096.6,3096.2,0.94088835]
[1768045566158,3.22918605,3096.8,3096.2,0.94088835]
[1768045571068,3.22918605,3096.8,3096.5,0.002]
[1768045571268,3.22918605,3096.8,3096.2,0.94088835]
[1768045571938,0.001,3096.5,3096.2,0.94088835]
[1768045573153,0.001,3096.5,3096.2,0.0008016]
[1768045594984,0.51534184,3096.5,3096.2,0.0008016]
[1768045627713,0.001,3096.5,3096.2,0.0008016]
[1768045636030,0.90672363,3096.4,3096.2,0.0008016]
[1768045636729,0.001,3096.5,3096.2,0.0008016]
[1768045639632,0.001,3096.5,3096.1,0.002]
[1768045642703,3.2295569,3096.4,3096.1,0.002]
[1768045642908,0.73667386,3096.3,3096.1,0.002]
[1768045644914,3.96636909,3096.3,3096.1,0.002]
[1768045645107,0.001,3096.2,3096.1,0.002]
[1768045647085,0.001,3096.2,3095.8,0.0036064]
[1768045649718,0.001,3096.2,3095.8,0.93155347]
[1768045649915,0.81412906,3096.2,3095.8,0.93155347]
[1768045654011,0.001,3096.2,3095.8,0.93155347]
[1768045657520,0.001,3096.2,3096.1,0.002]
[1768045657720,0.001,3096.2,3095.8,0.93155347]
[1768045662757,0.001,3096.2,3095.8,0.0036064]
[1768045669775,0.001,3096.2,3095.8,0.00161232]
[1768045669999,0.42321918,3096.2,3095.8,0.00161232]
[1768045670178,1.41469807,3096.2,3095.8,0.00161232]
[1768045676482,0.42321918,3096.2,3095.8,0.00161232]
[1768045679355,0.001,3096.2,3095.8,0.00161232]
[1768045681586,0.001,3095.9,3095.8,0.00161232]
[1768045732648,0.94224641,3095.9,3095.5,0.0028008]
[1768045732833,0.0008,3095.6,3095.0,0.95207342]
[1768045740750,0.0018,3095.6,3095.0,0.95207342]
[1768045741370,0.0018,3095.6,3095.1,0.95207342]
[1768045753033,0.001,3095.3,3095.1,0.95207342]
[1768045761778,0.001,3095.3,3094.9,4.19654268]
[1768045762279,0.001,3095.3,3095.0,0.9626643]
[1768045766558,0.001,3095.3,3094.9,3.23387838]
[1768045766763,0.001,3095.3,3094.9,4.19654268]
[1768045770881,0.001,3095.3,3094.9,0.96546862]
[1768045776303,0.001,3095.3,3095.2,0.002]
[1768045799185,0.00180432,3095.3,3094.9,0.91746862]
[1768045804993,0.00180432,3095.3,3094.8,3.36126405]
[1768045805160,0.00180432,3095.3,3094.9,0.254]
[1768045805663,0.97359883,3095.3,3094.8,0.13008101]
[1768045805993,0.97359883,3095.3,3094.8,0.0008]
[1768045813508,0.001,3095.0,3094.8,0.0008]
[1768045836242,1.14282666,3095.0,3094.8,0.0008]
[1768045836853,0.95077322,3095.0,3094.8,0.0008]
[1768045839127,0.001,3095.0,3094.8,0.0008]
[1768045852487,0.001,3095.0,3094.8,0.90136626]
[1768045853278,0.001,3095.0,3094.8,0.0008]
[1768045859382,0.001,3095.0,3094.8,0.90136626]
[1768045859555,0.001,3095.0,3094.8,1.15536626]
[1768045859755,0.001,3095.0,3094.9,0.90056626]
[1768045861882,0.00180432,3095.3,3094.9,1.33923508]
[1768045862058,0.00180432,3095.3,3094.9,0.90056626]
[1768045867094,0.00180432,3095.3,3094.9,0.254]
[1768045872613,0.001,3095.0,3094.9,0.254]
[1768045876441,0.00180432,3095.3,3094.9,0.254]
[1768045876661,0.00180432,3095.3,3094.9,1.23628693]
[1768045877354,0.00180432,3095.3,3094.9,0.98228693]
[1768045877548,0.00180432,3095.3,3094.9,1.23628693]
[1768045878869,0.00180432,3095.3,3094.9,0.254]
[1768045883962,0.00180432,3095.3,3095.0,0.98228693]
[1768045884525,0.00180432,3095.3,3095.0,1.95186324]
[1768045885338,0.00180432,3095.3,3095.1,0.254]
[1768045896062,0.00180432,3095.3,3094.8,0.9777689]
[1768045896270,0.00180432,3095.3,3095.1,0.254]
[1768045907275,0.00180432,3095.3,3094.9,3.23112216]
[1768045907476,0.00180432,3095.3,3095.0,0.254]
[1768045908780,0.0018008,3095.9,3095.4,0.9769689]
[1768045908946,0.0018008,3095.9,3095.5,0.254]
[1768045911078,0.0018008,3095.9,3095.6,0.94007712]
[1768045913482,0.0018008,3095.9,3095.7,3.48428717]
[1768045913678,0.0018008,3095.9,3095.7,3.23028717]
[1768045913888,0.0018008,3095.9,3095.7,3.48428717]
[1768045914866,0.0018008,3095.9,3095.7,3.23028717]
[1768045915467,0.0018008,3095.9,3095.6,4.42444974]
[1768045921498,0.0026064,3096.2,3095.6,4.42444974]
[1768045926891,0.0026064,3096.2,3095.6,4.17044974]
[1768045927194,0.0026064,3096.2,3095.7,0.254]
[1768045927367,0.96970589,3096.2,3095.5,0.0008016]
[1768045927567,0.96970589,3096.2,3095.6,0.254]
[1768045932090,0.96970589,3096.2,3095.9,0.002]
[1768045945408,0.0026064,3096.2,3095.9,0.002]
[1768045960737,0.0026064,3096.2,3095.9,0.90915587]
[1768045962846,0.0026064,3096.2,3095.9,0.002]
[1768045982388,0.90117548,3095.8,3094.7,3.23126446]
[1768045982547,0.0008016,3095.9,3094.8,0.99601973]
[1768045982548,0.0008,3095.2,3094.8,0.99601973]
[1768045983065,0.0008,3095.2,3095.0,0.99601973]
[1768045983596,0.0008,3095.2,3094.7,1.2480684]
[1768045984684,0.0008,3095.2,3094.7,4.47937593]
[1768045985177,0.0008,3095.2,3094.8,0.9940684]
[1768045987660,0.0008,3095.2,3094.9,0.9940684]
[1768045990485,0.0008,3095.2,3095.0,0.9940684]
[1768045997902,0.0008,3095.2,3094.8,0.9940684]
[1768046004385,0.001,3094.9,3094.8,0.9940684]
[1768046004885,0.001,3094.9,3094.8,4.22529497]
[1768046005087,0.0008,3095.2,3094.8,4.22529497]
[1768046013344,0.0008,3095.2,3094.8,0.9940684]
[1768046014555,0.0008,3095.2,3094.7,3.48528384]
[1768046014903,0.0008,3095.2,3094.7,0.254]
[1768046016245,0.001,3094.9,3094.7,0.254]
[1768046024760,0.001,3094.9,3094.7,3.48531487]
[1768046032286,0.0008,3095.2,3094.7,3.48531487]
[1768046035470,0.0008,3095.2,3094.7,4.43269298]
[1768046039473,0.001,3094.9,3094.7,4.43269298]
[1768046039654,0.0008,3095.2,3094.7,4.43269298]
[1768046051895,0.001,3094.9,3094.7,4.43269298]
[1768046052061,0.0008,3095.2,3094.7,4.43269298]
[1768046054294,0.0008,3095.2,3094.7,3.48531487]
[1768046063588,0.001,3094.9,3094.7,3.48531487]
[1768046065301,0.0008,3095.2,3094.7,3.48531487]
[1768046075305,0.001,3094.9,3094.7,3.48531487]
[1768046105222,0.0008,3095.2,3094.7,3.48531487]
[1768046110532,0.001,3094.9,3094.7,3.48531487]
[1768046116727,0.0008,3095.2,3094.7,3.48531487]
[1768046122744,0.001,3094.9,3094.7,3.48531487]
[1768046122934,0.0008,3095.2,3094.7,3.48531487]
[1768046134563,0.001,3094.9,3094.7,3.48531487]
[1768046150794,0.0008,3095.2,3094.7,3.48531487]
[1768046156784,0.0008,3095.2,3094.7,6.71664585]
[1768046157156,0.0008,3095.2,3094.7,7.65669079]
[1768046158358,0.001,3094.9,3094.7,7.65669079]
[1768046158583,0.0008,3095.2,3094.7,7.65669079]
[1768046161163,0.0008008,3095.6,3094.9,0.94084942]
[1768046162155,0.0008008,3095.6,3094.9,1.02159877]
[1768046162458,0.0008008,3095.6,3095.0,3.4471922]
[1768046162784,0.0008008,3095.6,3095.1,0.94004494]
[1768046162985,0.0008008,3095.6,3095.2,6.71561798]
[1768046163392,0.0008008,3095.6,3095.2,7.70261093]
[1768046164688,0.0008016,3095.9,3095.3,0.98699295]
[1768046165284,0.94049608,3096.1,3095.4,7.44819343]
[1768046165486,0.94049608,3096.1,3095.5,0.0008024]
[1768046166462,2.001,3096.5,3095.7,0.98699295]
[1768046168495,0.94049608,3096.4,3095.7,3.23027231]
[1768046168663,0.94049608,3096.3,3095.7,3.23027231]
[1768046170195,0.94049608,3096.3,3095.8,0.002]
[1768046170586,0.94049608,3096.3,3095.8,3.23217458]
[1768046171673,0.94049608,3096.3,3095.8,0.002]
[1768046175300,0.001,3096.5,3095.8,0.002]
[1768046175301,0.94310248,3096.2,3095.8,0.002]
[1768046181502,0.0026064,3096.2,3095.8,0.002]
[1768046182979,0.0026064,3096.2,3095.8,0.98899295]
[1768046183185,0.00160838,3096.2,3095.9,0.98699295]
[1768046183585,0.00160838,3096.2,3096.0,3.22997416]
[1768046186407,0.00160838,3096.2,3095.9,3.23003121]
[1768046190608,0.00160838,3096.2,3095.8,3.23218282]
[1768046192714,0.00160838,3096.2,3095.8,6.46236564]
[1768046193218,0.00160838,3096.2,3095.8,3.23218282]
[1768046195216,0.001,3095.9,3095.8,3.23218282]
[1768046195388,0.00160838,3096.2,3095.8,3.23218282]
[1768046196913,0.00160838,3096.2,3095.8,6.46236564]
[1768046197220,0.00160838,3096.2,3095.9,0.254]
[1768046198491,0.00160838,3096.2,3095.9,3.48404214]
[1768046201322,0.00160838,3096.2,3095.9,4.40461199]
[1768046202096,0.00160838,3096.2,3095.9,4.5338529]
[1768046202799,0.00160838,3096.2,3095.9,3.35928305]
[1768046204930,0.00160838,3096.2,3095.9,4.2798529]
[1768046207121,0.00160838,3096.2,3095.9,3.35928305]
[1768046207523,0.00160838,3096.2,3095.9,4.2798529]
[1768046218643,0.00160838,3096.2,3095.9,3.35928305]
[1768046234157,0.00160838,3096.2,3095.9,4.32178727]
[1768046238054,0.00160838,3096.2,3095.9,3.35928305]
[1768046242263,0.00160838,3096.2,3095.9,4.32178727]
[1768046243967,0.00160838,3096.2,3095.9,3.35928305]
[1768046245162,0.00160838,3096.2,3095.9,6.58936154]
[1768046245466,0.00160838,3096.2,3095.9,7.55186576]
[1768046245765,0.00160838,3096.2,3095.9,6.58936154]
[1768046246568,0.00160838,3096.2,3095.9,3.35928305]
[1768046250570,0.00160838,3096.2,3095.9,4.32178727]
[1768046250766,0.00160838,3096.2,3095.9,4.19254636]
[1768046250980,0.00160838,3096.2,3095.9,7.42262485]
[1768046251189,0.90202866,3096.5,3095.9,6.46012063]
[1768046251345,0.90202866,3096.5,3095.9,7.36195089]
[1768046251746,0.90202866,3096.5,3095.9,6.46012063]
[1768046252051,0.90202866,3096.5,3096.0,0.90202866]
[1768046253288,0.001,3096.5,3096.1,3.22986983]
[1768046254587,0.001,3096.2,3096.1,3.22986983]
[1768046254887,0.001,3096.5,3096.1,3.22986983]
[1768046255047,0.001,3096.5,3096.1,6.45973966]
[1768046259357,0.9600976,3096.8,3096.2,0.0008024]
[1768046259556,0.001,3096.9,3096.2,0.0008024]
[1768046260559,0.001,3096.9,3096.2,0.96316721]
[1768046261252,0.001,3096.9,3096.3,7.42168721]
[1768046261853,0.001,3096.9,3096.3,7.67568721]
[1768046262171,0.001,3096.9,3096.4,0.96236481]
[1768046263548,0.001,3096.9,3096.5,6.4589052]
[1768046264684,0.001,3096.9,3096.5,0.96236481]
[1768046266281,0.96090336,3097.2,3096.5,0.96236481]
[1768046266584,0.95871069,3097.2,3096.8,0.00080584]
[1768046269086,0.0028016,3097.4,3096.8,0.00080584]
[1768046269388,0.9628992,3097.4,3096.8,0.00080584]
[1768046277926,0.9628992,3097.4,3097.1,0.002]
[1768046291251,0.9628992,3097.4,3096.8,0.00280584]
[1768046301078,0.9628992,3097.4,3097.1,0.001]
[1768046301257,0.9628992,3097.4,3096.8,0.00280584]
[1768046313485,0.9628992,3097.4,3097.1,0.001]
[1768046313687,0.44453192,3097.3,3096.8,0.00280584]
[1768046313853,0.002,3097.1,3096.8,0.00280584]
[1768046332496,0.90485081,3097.1,3096.8,0.00280584]
[1768046333301,0.90485081,3097.1,3096.8,0.97191233]
[1768046336199,0.90485081,3097.1,3096.8,0.00280584]
[1768046336495,0.90485081,3097.1,3096.9,0.96910649]
[1768046346609,0.002,3097.1,3096.9,0.96910649]
[1768046347499,0.93635672,3097.1,3096.9,0.96910649]
[1768046348629,0.002,3097.1,3096.9,0.96910649]
[1768046352703,0.002,3097.1,3096.8,0.00280584]
[1768046353226,0.002,3097.1,3096.8,0.93716256]
[1768046380259,0.002,3097.1,3096.8,0.00280584]
[1768046380550,0.002,3097.1,3096.9,0.93435672]
[1768046408778,0.0028016,3097.4,3097.0,0.92109679]
[1768046409550,0.0028016,3097.4,3097.1,0.9689719]
[1768046411672,0.99089968,3097.8,3097.1,0.9689719]
[1768046411673,2.99209728,3098.0,3097.4,0.0008032]
[1768046411977,2.30137069,3098.0,3097.4,0.0008032]
[1768046412174,2.30137069,3098.0,3097.4,0.92189999]
[1768046412557,2.30137069,3098.0,3097.5,0.96885612]
[1768046414376,2.002,3098.0,3097.5,0.96885612]
[1768046415283,0.002,3098.0,3097.5,0.96885612]
[1768046416568,0.99209728,3098.0,3097.5,0.96885612]
[1768046420956,0.001,3097.7,3097.5,0.96885612]
[1768046428601,0.001,3097.7,3097.5,1.88995291]
[1768046428768,0.001,3097.7,3097.5,0.96885612]
[1768046428967,0.001,3097.7,3097.4,0.0008032]
[1768046429489,0.001,3097.7,3097.5,0.96885612]
[1768046441014,0.001,3097.7,3097.4,0.0008032]
[1768046441809,0.97861856,3097.7,3097.4,0.0008032]
[1768046447414,1.39928202,3097.7,3097.4,0.0008032]
[1768046448724,0.97761856,3097.6,3097.4,0.0008032]
[1768046452220,0.42166346,3097.7,3097.4,0.0008032]
[1768046452424,0.001,3097.7,3097.4,0.0008032]
[1768046458772,0.90641215,3097.7,3097.4,0.0008032]
[1768046464539,0.001,3097.7,3097.4,0.0008032]
[1768046483939,0.001,3097.7,3097.4,0.99795527]
[1768046487060,3.22830944,3098.4,3098.0,0.99715207]
[1768046487061,0.00080608,3098.4,3098.0,0.99715207]
[1768046487449,0.00080608,3098.4,3098.1,0.12915787]
[1768046487973,0.00080608,3098.4,3098.0,0.99715207]
[1768046488671,0.00080608,3098.4,3098.0,1.96584551]
[1768046490635,0.00080608,3098.4,3098.0,0.96869344]
[1768046490841,0.002,3098.7,3098.2,0.000804]
[1768046491062,0.002,3098.7,3098.2,0.99795607]
[1768046491981,0.002,3098.7,3098.2,1.96656193]
[1768046492183,0.002,3098.7,3098.2,2.18869874]
[1768046493089,0.97385616,3098.7,3098.2,0.000804]
[1768046494281,0.002,3098.4,3098.2,0.000804]
[1768046514402,0.002,3098.4,3098.2,0.9949208]
[1768046525014,0.002,3098.4,3098.2,0.000804]
[1768046537532,0.94829117,3098.4,3098.2,0.000804]
[1768046543355,0.002,3098.4,3098.2,0.000804]
[1768046543866,0.002,3098.4,3098.0,0.00080616]
[1768046543867,0.94629117,3098.3,3098.0,0.00080616]
[1768046544151,0.94629117,3098.3,3097.8,0.00161048]
[1768046544666,0.94629117,3098.1,3097.4,0.0008032]
[1768046544969,0.94629117,3097.9,3097.4,0.0008032]
[1768046552183,0.94629117,3097.8,3097.4,0.0008032]
[1768046552338,0.41743286,3097.7,3097.4,0.0008032]
[1768046561850,4.2136035,3098.0,3097.4,0.0008032]
[1768046565490,4.2136035,3098.0,3097.7,0.001]
[1768046566293,4.2156035,3098.0,3097.7,0.001]
[1768046566479,0.002,3098.0,3097.7,0.001]
[1768046567773,0.002,3098.0,3097.7,0.99643417]
[1768046569989,0.002,3098.0,3097.9,0.99543417]
[1768046582627,0.002,3098.0,3097.7,0.91521438]
[1768046595641,0.002,3098.0,3097.8,4.14379481]
[1768046595808,0.002,3098.0,3097.8,0.91573216]
[1768046596346,0.00161048,3098.2,3097.9,0.91573216]
[1768046599943,0.00161048,3098.2,3097.9,4.14372237]
[1768046600154,0.00161048,3098.2,3098.0,0.91573216]
[1768046602120,0.00361048,3098.2,3098.0,0.91573216]
[1768046604345,0.00361048,3098.2,3098.0,1.16973216]
[1768046615058,0.00361048,3098.2,3098.0,0.254]
[1768046672209,0.00361048,3098.2,3097.8,3.22803951]
[1768046672378,0.00361048,3098.2,3097.9,0.254]
[1768046675108,0.00361048,3098.2,3097.9,3.4819509]
[1768046676108,0.00361048,3098.2,3097.9,0.254]
[1768046694233,0.00361048,3098.2,3097.7,0.001]
[1768046694404,0.00361048,3098.2,3097.9,0.254]
[1768046694732,0.00361048,3098.2,3097.8,0.254]
[1768046695918,0.96345732,3098.2,3097.8,0.254]
[1768046698342,0.96345732,3098.2,3097.7,3.22919084]
[1768046698516,0.96345732,3098.2,3097.8,0.254]
[1768046698937,0.00361048,3098.2,3097.8,0.254]
[1768046699964,0.00361048,3098.2,3097.8,4.46275296]
[1768046700536,0.00361048,3098.2,3097.9,0.98066974]
[1768046700851,0.00361048,3098.2,3097.8,3.48208322]
[1768046700852,0.000804,3098.6,3098.0,4.42270704]
[1768046702110,0.000804,3098.6,3098.1,3.22778477]
[1768046705328,0.000804,3098.6,3098.0,3.2286952]
[1768046705677,0.99172001,3098.6,3098.0,3.2286952]
[1768046706335,0.99172001,3098.6,3098.1,0.254]
[1768046708065,0.99172001,3098.6,3098.0,3.2286952]
[1768046708273,0.99172001,3098.6,3098.0,3.4826952]
[1768046709736,0.99172001,3098.6,3098.4,0.001]
[1768046714271,0.000804,3098.6,3098.4,0.001]
[1768046723393,0.002,3098.9,3098.5,1.23308081]